bitfinex/quotes_SOLUSD_20220227
["timestamp","ask_amount","ask_price","bid_price","bid_amount"]
[1645998651899,117.6,85.372,85.296,9.04530852]
[1645998652100,117.6,85.37,85.296,9.04530852]
[1645998652299,10.687,85.369,85.296,9.04530852]
[1645998652898,117.6,85.368,85.296,9.04530852]
[1645998653098,135.42344782,85.368,85.296,3.04530852]
[1645998653300,19.68945084,85.367,85.296,3.04530852]
[1645998653501,6.0,85.366,85.296,3.04530852]
[1645998653901,6.0,85.369,85.297,6.0]
[1645998654101,117.6,85.368,85.297,6.0]
[1645998654305,117.6,85.366,85.297,6.0]
[1645998654502,6.0,85.365,85.296,3.04530852]
[1645998654702,117.6,85.364,85.296,3.04530852]
[1645998654902,117.6,85.362,85.296,3.04530852]
[1645998655103,117.6,85.36,85.296,3.04530852]
[1645998655304,6.0,85.359,85.296,3.04530852]
[1645998656004,117.6,85.358,85.296,3.04530852]
[1645998656204,117.6,85.356,85.273,30.96349339]
[1645998656403,117.6,85.354,85.274,29.6975]
[1645998656603,131.37,85.34,85.275,2.38159672]
[1645998657805,117.6,85.338,85.253,2.33277888]
[1645998658007,117.6,85.336,85.229,2.63629994]
[1645998658207,117.6,85.334,85.23,6.0]
[1645998658506,117.6,85.319,85.231,35.61301142]
[1645998658807,117.6,85.317,85.232,2.76407951]
[1645998659006,10.69,85.316,85.232,2.76407951]
[1645998659206,23.82344782,85.316,85.232,2.76407951]
[1645998659408,20.57023703,85.316,85.232,2.76407951]
[1645998659607,2.74678921,85.316,85.232,7.45407951]
[1645998659806,2.74678921,85.316,85.233,6.0]
[1645998660005,6.0,85.315,85.233,6.0]
[1645998660405,13.77,85.31,85.233,6.0]
[1645998661009,6.0,85.309,85.233,6.0]
[1645998661210,2.74678921,85.328,85.234,4.69]
[1645998661408,13.77,85.33,85.235,6.0]
[1645998661620,13.77,85.33,85.236,122.29]
[1645998661809,13.77,85.33,85.238,117.6]
[1645998662011,6.0,85.329,85.24,117.6]
[1645998662208,8.74678921,85.329,85.242,117.6]
[1645998662410,8.74678921,85.329,85.244,2.72512745]
[1645998662709,27.10811034,85.329,85.246,2.88896184]
[1645998662909,2.74678921,85.328,85.247,6.0]
[1645998663111,6.0,85.327,85.247,6.0]
[1645998663310,6.0,85.327,85.248,117.6]
[1645998663510,6.0,85.327,85.25,117.6]
[1645998663710,6.0,85.337,85.251,13.04498748]
[1645998664111,27.10811034,85.337,85.251,10.689]
[1645998664311,8.74678921,85.337,85.251,6.0]
[1645998664512,20.57023703,85.336,85.247,6.0]
[1645998664716,6.0,85.335,85.247,6.0]
[1645998664911,8.74678921,85.335,85.247,6.0]
[1645998665130,20.57023703,85.334,85.247,6.0]
[1645998665528,18.36132113,85.333,85.247,6.0]
[1645998665929,6.0,85.332,85.247,6.0]
[1645998666329,17.82344782,85.331,85.247,6.0]
[1645998666730,117.6,85.329,85.247,6.0]
[1645998666930,117.6,85.327,85.246,2.78592835]
[1645998667133,117.6,85.325,85.246,2.78592835]
[1645998667330,117.6,85.323,85.246,2.78592835]
[1645998667532,131.37,85.31,85.246,2.78592835]
[1645998667731,117.6,85.308,85.246,2.78592835]
[1645998667932,117.6,85.306,85.239,2.78419118]
[1645998668132,117.6,85.304,85.239,2.78419118]
[1645998668332,131.37,85.3,85.2,4.69]
[1645998668531,6.0,85.299,85.232,2.50737451]
[1645998668736,13.77,85.3,85.233,6.0]
[1645998668931,26.88277954,85.303,85.233,8.6960039]
[1645998668932,2.74678921,85.303,85.233,8.6960039]
[1645998669131,2.74678921,85.303,85.234,22.8743]
[1645998669332,2.74678921,85.303,85.235,8.868109]
[1645998671136,40.16877648,85.325,85.235,8.868109]
[1645998671137,40.16877648,85.325,85.237,2.3672423]
[1645998671337,6.0,85.324,85.24,2.6189356]
[1645998671536,24.13599033,85.325,85.243,2.49076831]
[1645998671734,24.13599033,85.325,85.246,2.34045345]
[1645998671933,24.13599033,85.325,85.249,2.91084646]
[1645998672133,24.13599033,85.325,85.252,2.78904014]
[1645998672335,24.13599033,85.325,85.254,2.375533]
[1645998672539,2.74678921,85.324,85.255,6.0]
[1645998673345,2.74678921,85.334,85.256,117.6]
[1645998673545,19.64758055,85.323,85.26,117.6]
[1645998673748,17.3957,85.34,85.263,2.59645505]
[1645998673946,6.0,85.339,85.266,2.6436987]
[1645998674146,6.0,85.339,85.269,2.81099158]
[1645998674347,2.74678921,85.338,85.265,2.3744949]
[1645998674647,6.0,85.337,85.265,2.3744949]
[1645998674850,30.09412004,85.337,85.266,6.0]
[1645998675049,2.74678921,85.336,85.266,6.0]
[1645998675248,6.0,85.335,85.266,6.0]
[1645998675448,24.09412004,85.335,85.266,6.0]
[1645998675648,2.74678921,85.334,85.266,6.0]
[1645998675850,26.88277954,85.334,85.266,6.0]
[1645998676048,24.09412004,85.333,85.266,6.0]
[1645998676248,26.84090925,85.333,85.266,6.0]
[1645998676448,2.74678921,85.332,85.266,6.0]
[1645998676649,26.88277954,85.332,85.266,6.0]
[1645998676849,24.09412004,85.331,85.266,6.0]
[1645998678250,2.74678921,85.33,85.266,6.0]
[1645998678651,137.28945084,85.329,85.266,6.0]
[1645998678849,6.0,85.328,85.266,6.0]
[1645998679049,8.74678921,85.328,85.266,6.0]
[1645998679250,24.09412004,85.327,85.266,6.0]
[1645998679551,2.74678921,85.326,85.266,6.0]
[1645998681054,22.43624005,85.326,85.266,6.0]
[1645998681453,8.74678921,85.325,85.265,2.3744949]
[1645998681853,26.84090925,85.324,85.265,2.3744949]
[1645998682054,13.77,85.32,85.235,2.90188961]
[1645998682355,6.0,85.319,85.237,28.78574728]
[1645998682558,126.34678921,85.319,85.238,9.02618009]
[1645998682754,2.74678921,85.318,85.238,9.02618009]
[1645998683058,6.0,85.317,85.238,9.02618009]
[1645998683253,117.6,85.316,85.238,9.02618009]
[1645998683454,117.6,85.314,85.238,3.02618009]
[1645998683653,117.6,85.309,85.238,3.02618009]
[1645998683855,117.6,85.307,85.238,3.02618009]
[1645998684054,10.69,85.306,85.238,3.02618009]
[1645998684254,24.09412004,85.306,85.238,3.02618009]
[1645998684454,25.68945084,85.305,85.238,3.02618009]
[1645998684655,28.43624005,85.305,85.238,3.02618009]
[1645998684954,26.84090925,85.304,85.238,3.02618009]
[1645998685355,2.74678921,85.303,85.239,6.0]
[1645998685554,17.65290869,85.303,85.238,3.02618009]
[1645998685955,6.0,85.302,85.238,3.02618009]
[1645998686155,2.74678921,85.303,85.238,3.02618009]
[1645998686355,19.68945084,85.302,85.238,3.02618009]
[1645998686956,123.6,85.301,85.238,3.02618009]
[1645998687161,8.74678921,85.301,85.238,3.02618009]
[1645998687357,24.09412004,85.3,85.238,3.02618009]
[1645998687557,6.0,85.299,85.238,3.02618009]
[1645998691366,6.0,85.299,85.239,6.0]
[1645998691769,2.74678921,85.3,85.239,6.0]
[1645998691967,6.0,85.299,85.24,23.8524]
[1645998692169,6.0,85.299,85.241,2.58170376]
[1645998695176,2.74678921,85.298,85.241,2.58170376]
[1645998695373,6.0,85.297,85.241,2.58170376]
[1645998695576,117.6,85.296,85.241,2.58170376]
[1645998695777,117.6,85.294,85.205,24.9312]
[1645998695974,117.6,85.292,85.206,34.1446607]
[1645998696173,131.37,85.28,85.207,2.56108122]
[1645998696375,6.0,85.279,85.208,6.0]
[1645998696976,6.0,85.279,85.209,117.6]
[1645998697276,26.33878921,85.293,85.209,117.6]
[1645998697277,23.592,85.293,85.212,3.11990382]
[1645998697478,23.592,85.293,85.213,10.691]
[1645998697676,24.3291,85.299,85.213,10.691]
[1645998697876,24.3291,85.299,85.213,6.0]
[1645998698079,2.74678921,85.298,85.208,6.0]
[1645998698277,117.6,85.296,85.208,6.0]
[1645998698481,117.6,85.294,85.208,6.0]
[1645998698680,13.77,85.29,85.208,6.0]
[1645998698897,6.0,85.289,85.208,8.93444458]
[1645998699398,2.74678921,85.288,85.208,8.93444458]
[1645998699598,6.0,85.287,85.208,8.93444458]
[1645998699998,2.74678921,85.286,85.208,8.93444458]
[1645998700198,6.0,85.285,85.208,8.93444458]
[1645998700400,13.77,85.28,85.208,8.93444458]
[1645998702404,13.77,85.3,85.209,122.292]
[1645998702605,4.691,85.319,85.211,117.6]
[1645998702804,6.0,85.318,85.213,117.6]
[1645998703004,6.0,85.318,85.215,117.6]
[1645998703206,6.0,85.318,85.217,117.6]
[1645998703404,6.0,85.318,85.218,6.0]
[1645998703606,6.0,85.318,85.219,4.691]
[1645998703806,10.68029198,85.318,85.22,28.8485]
[1645998704004,28.21199033,85.318,85.221,7.74154888]
[1645998704205,117.6,85.317,85.222,6.0]
[1645998704404,117.6,85.315,85.223,4.691]
[1645998704607,117.6,85.313,85.224,6.0]
[1645998704805,117.6,85.311,85.222,6.0]
[1645998705004,6.0,85.312,85.222,6.0]
[1645998705005,123.6,85.31,85.222,6.0]
[1645998705207,4.691,85.309,85.222,6.0]
[1645998705407,117.6,85.307,85.222,6.0]
[1645998705606,117.6,85.305,85.222,6.0]
[1645998705808,117.6,85.303,85.222,6.0]
[1645998706105,131.37,85.3,85.222,6.0]
[1645998706305,6.0,85.299,85.222,6.0]
[1645998709512,23.53169835,85.299,85.222,6.0]
[1645998709914,117.6,85.298,85.222,6.0]
[1645998710117,6.0,85.297,85.222,6.0]
[1645998710314,9.36058396,85.297,85.222,6.0]
[1645998710516,23.53169835,85.296,85.222,6.0]
[1645998710818,17.53169835,85.296,85.222,6.0]
[1645998711015,6.0,85.295,85.222,6.0]
[1645998711216,15.36058396,85.295,85.222,6.0]
[1645998711618,122.28029198,85.294,85.222,6.0]
[1645998711816,117.6,85.292,85.222,6.0]
[1645998712017,13.77,85.29,85.222,6.0]
[1645998712518,131.37,85.29,85.222,6.0]
[1645998712718,13.77,85.29,85.222,6.0]
[1645998713619,131.37,85.29,85.222,6.0]
[1645998714020,13.77,85.29,85.222,6.0]
[1645998715322,6.0,85.289,85.222,6.0]
[1645998715923,13.77,85.29,85.222,6.0]
[1645998716721,24.8477,85.294,85.222,6.0]
[1645998719844,6.0,85.293,85.222,6.0]
[1645998720046,24.8477,85.294,85.222,6.0]
[1645998720245,6.0,85.293,85.222,6.0]
[1645998720747,24.8477,85.294,85.222,6.0]
[1645998721146,6.0,85.293,85.222,6.0]
[1645998721747,117.6,85.292,85.222,6.0]
[1645998721949,124.93,85.292,85.222,6.0]
[1645998722146,117.6,85.29,85.222,6.0]
[1645998722348,117.6,85.288,85.222,6.0]
[1645998722548,4.691,85.287,85.222,6.0]
[1645998722747,117.6,85.286,85.204,2.77963641]
[1645998722947,117.6,85.284,85.205,2.87083285]
[1645998723147,131.37,85.27,85.205,2.87083285]
[1645998723347,6.0,85.269,85.206,32.70875549]
[1645998723554,6.0,85.269,85.207,2.7794511]
[1645998723750,117.6,85.268,85.207,2.7794511]
[1645998723948,117.6,85.266,85.207,2.7794511]
[1645998724151,6.0,85.265,85.207,2.7794511]
[1645998724348,6.0,85.267,85.207,2.7794511]
[1645998724749,6.0,85.269,85.207,2.7794511]
[1645998726150,16.92,85.27,85.208,6.0]
[1645998726851,16.92,85.27,85.209,6.0]
[1645998727250,16.92,85.27,85.207,2.7794511]
[1645998727452,117.6,85.268,85.207,2.7794511]
[1645998727852,117.6,85.266,85.207,2.7794511]
[1645998728051,117.6,85.264,85.207,2.7794511]
[1645998728252,134.52,85.26,85.207,2.7794511]
[1645998728457,117.6,85.258,85.207,2.7794511]
[1645998728854,117.6,85.256,85.207,2.7794511]
[1645998729052,117.6,85.254,85.207,2.7794511]
[1645998729251,6.0,85.255,85.141,79.0452]
[1645998729252,117.6,85.249,85.141,79.0452]
[1645998729457,117.6,85.247,85.165,34.38829661]
[1645998729655,117.6,85.245,85.166,23.6797]
[1645998729853,117.6,85.243,85.167,2.71464221]
[1645998730055,134.52,85.23,85.167,2.71464221]
[1645998730456,6.0,85.229,85.167,2.71464221]
[1645998735655,6.0,85.229,85.168,6.0]
[1645998739461,2.74678921,85.262,85.169,117.6]
[1645998739660,47.3249,85.26,85.172,3.12095911]
[1645998739860,47.3249,85.26,85.173,6.0]
[1645998740061,16.92,85.26,85.174,117.6]
[1645998740260,14.12445882,85.283,85.177,2.36162182]
[1645998740461,16.92,85.28,85.18,2.43004499]
[1645998740661,6.0,85.279,85.183,3.06613206]
[1645998740863,16.92,85.28,85.186,2.96361684]
[1645998741063,16.92,85.28,85.189,2.25879332]
[1645998741263,16.92,85.28,85.193,117.6]
[1645998741463,16.92,85.28,85.194,8.65159852]
[1645998741662,16.92,85.28,85.196,3.04803658]
[1645998741864,16.92,85.28,85.199,2.8114928]
[1645998742062,16.92,85.29,85.201,117.6]
[1645998742263,28.1599,85.298,85.204,3.04456482]
[1645998742464,6.0,85.297,85.207,2.29907776]
[1645998742664,10.68029198,85.297,85.21,2.87270921]
[1645998742864,22.21199033,85.296,85.213,2.9337576]
[1645998743065,6.0,85.295,85.215,2.59692009]
[1645998743264,6.0,85.295,85.216,6.0]
[1645998743465,4.68029198,85.294,85.216,6.0]
[1645998743664,22.21199033,85.294,85.218,31.09843903]
[1645998743865,6.0,85.293,85.219,8.88666211]
[1645998744165,8.74678921,85.293,85.219,8.88666211]
[1645998744467,2.74678921,85.292,85.219,8.88666211]
[1645998745265,4.68029198,85.291,85.219,8.88666211]
[1645998745671,7.42708119,85.291,85.219,8.88666211]
[1645998746769,6.0,85.29,85.219,8.88666211]
[1645998746974,7.42708119,85.291,85.219,8.88666211]
[1645998747178,2.74678921,85.29,85.219,8.88666211]
[1645998749277,23.4679,85.298,85.221,2.73017089]
[1645998749480,16.92,85.3,85.224,2.6381607]
[1645998749676,16.92,85.3,85.225,6.0]
[1645998750280,16.92,85.3,85.22,6.0]
[1645998751591,16.69,85.3,85.22,6.0]
[1645998751793,6.0,85.299,85.22,6.0]
[1645998752994,16.69,85.3,85.22,6.0]
[1645998755400,6.0,85.299,85.221,117.6]
[1645998755600,6.0,85.299,85.223,117.6]
[1645998755803,6.0,85.299,85.224,8.92184658]
[1645998756201,16.69,85.3,85.224,8.92184658]
[1645998757001,6.0,85.299,85.224,8.92184658]
[1645998757205,22.9464,85.31,85.225,117.6]
[1645998757404,2.74678921,85.33,85.227,117.6]
[1645998757603,28.8642,85.326,85.229,117.6]
[1645998757803,6.0,85.326,85.231,117.6]
[1645998758005,16.92,85.33,85.233,117.6]
[1645998758203,16.92,85.33,85.232,6.0]
[1645998758204,17.9977,85.338,85.235,117.6]
[1645998758402,17.9977,85.338,85.237,117.6]
[1645998758603,17.9977,85.338,85.239,117.6]
[1645998758904,17.9977,85.338,85.242,2.86650256]
[1645998759104,17.9977,85.338,85.246,117.6]
[1645998759303,17.9977,85.338,85.249,3.08887168]
[1645998759507,17.9977,85.338,85.252,2.93486455]
[1645998759707,17.9977,85.338,85.254,117.6]
[1645998759903,17.9977,85.338,85.256,117.6]
[1645998760104,17.9977,85.338,85.259,2.78947201]
[1645998760305,40.20969033,85.338,85.262,2.93121579]
[1645998760504,40.20969033,85.338,85.257,23.9351]
[1645998760505,40.20969033,85.338,85.265,2.78995649]
[1645998760704,40.20969033,85.338,85.268,2.42330852]
[1645998760905,40.20969033,85.338,85.272,117.6]
[1645998761104,40.20969033,85.338,85.274,2.50516649]
[1645998761306,40.20969033,85.338,85.275,6.0]
[1645998766213,40.20969033,85.338,85.274,2.50516649]
[1645998767413,6.0,85.337,85.274,2.50516649]
[1645998767616,40.20969033,85.338,85.274,2.50516649]
[1645998767813,6.0,85.337,85.274,2.50516649]
[1645998768213,40.20969033,85.338,85.274,2.50516649]
[1645998768818,6.0,85.337,85.274,2.50516649]
[1645998769215,40.20969033,85.338,85.274,2.50516649]
[1645998769614,17.9977,85.338,85.274,2.50516649]
[1645998769818,6.0,85.337,85.274,2.50516649]
[1645998770015,6.0,85.337,85.275,6.0]
[1645998770218,17.9977,85.338,85.275,6.0]
[1645998771816,6.0,85.337,85.275,6.0]
[1645998772015,17.9977,85.338,85.275,6.0]
[1645998774124,17.9977,85.338,85.275,5.76]
[1645998775927,6.0,85.337,85.275,5.76]
[1645998776527,17.9977,85.338,85.275,5.76]
[1645998777956,22.67799198,85.338,85.275,5.76]
[1645998778157,17.9977,85.338,85.275,5.76]
[1645998778354,17.9977,85.338,85.275,14.06]
[1645998779358,188.9,85.386,85.276,117.6]
[1645998779558,6.0,85.378,85.278,117.6]
[1645998779758,6.0,85.378,85.28,117.6]
[1645998779959,6.0,85.378,85.282,117.6]
[1645998780158,6.0,85.378,85.284,117.6]
[1645998780359,6.0,85.378,85.288,117.6]
[1645998780560,6.0,85.38,85.291,2.92101291]
[1645998780760,29.8794,85.399,85.294,2.8400455]
[1645998780961,29.8794,85.399,85.297,2.74236264]
[1645998781160,2.74678921,85.398,85.3,2.46218966]
[1645998781359,6.0,85.397,85.303,3.06559215]
[1645998781561,6.0,85.397,85.301,6.0]
[1645998781562,6.0,85.397,85.306,2.437375]
[1645998781860,28.21251033,85.397,85.309,3.10470518]
[1645998782162,22.21251033,85.397,85.314,117.6]
[1645998782360,22.21251033,85.397,85.317,2.4507266]
[1645998782561,22.21251033,85.397,85.32,2.89499522]
[1645998782762,22.21251033,85.397,85.323,2.35271356]
[1645998782960,22.21251033,85.397,85.326,3.0926406]
[1645998783160,22.21251033,85.397,85.329,2.53637949]
[1645998783367,22.21251033,85.397,85.331,117.6]
[1645998783561,22.21251033,85.397,85.334,2.29741019]
[1645998783761,24.5127,85.414,85.337,3.00292666]
[1645998783961,6.0,85.413,85.341,117.6]
[1645998784161,6.0,85.413,85.343,117.6]
[1645998784361,6.0,85.413,85.344,9.07070212]
[1645998784561,6.0,85.413,85.346,3.07706555]
[1645998784763,4.72112227,85.412,85.347,6.0]
[1645998784963,6.0,85.411,85.347,6.0]
[1645998786067,4.67925198,85.425,85.348,117.6]
[1645998786267,4.67925198,85.425,85.35,117.6]
[1645998786467,17.5718,85.48,85.352,117.6]
[1645998786468,112.6,85.453,85.352,117.6]
[1645998786672,112.6,85.453,85.355,2.95575596]
[1645998786970,112.6,85.453,85.358,2.40306252]
[1645998787267,6.0,85.452,85.361,117.6]
[1645998787566,6.0,85.452,85.364,2.87306468]
[1645998787968,6.0,85.452,85.366,117.6]
[1645998788167,28.21251033,85.452,85.37,117.6]
[1645998788370,28.21251033,85.452,85.373,2.99644331]
[1645998788570,28.21251033,85.452,85.375,117.6]
[1645998788871,28.21251033,85.452,85.378,2.30873325]
[1645998789068,28.21251033,85.452,85.381,2.43199029]
[1645998789268,28.21251033,85.452,85.383,117.6]
[1645998789469,28.21251033,85.452,85.384,8.46168895]
[1645998789770,28.21251033,85.452,85.385,22.7492]
[1645998789969,28.21251033,85.452,85.386,8.86742172]
[1645998790573,22.21251033,85.452,85.388,2.96058731]
[1645998790772,4.682,85.472,85.39,117.6]
[1645998790980,2.74678921,85.473,85.392,117.6]
[1645998791172,112.6,85.487,85.396,117.6]
[1645998791371,112.6,85.487,85.395,35.9248951]
[1645998791372,112.6,85.487,85.398,117.6]
[1645998791573,112.6,85.487,85.411,117.6]
[1645998791773,22.21251033,85.514,85.413,117.6]
[1645998791971,22.21251033,85.514,85.415,117.6]
[1645998792171,24.95929954,85.514,85.418,3.06097314]
[1645998792371,24.95929954,85.514,85.422,117.6]
[1645998792571,112.6,85.525,85.421,31.00117861]
[1645998792572,112.6,85.525,85.431,117.6]
[1645998792772,112.6,85.525,85.432,2.79820914]
[1645998792973,112.6,85.525,85.442,2.76214524]
[1645998793172,16.92,85.56,85.442,2.76214524]
[1645998793173,22.21251033,85.547,85.444,117.6]
[1645998793372,22.21251033,85.547,85.446,117.6]
[1645998793574,22.21251033,85.547,85.45,134.52]
[1645998793777,22.21251033,85.547,85.453,2.37890895]
[1645998793973,2.74678921,85.546,85.455,2.70879266]
[1645998794172,2.74678921,85.546,85.456,6.0]
[1645998794373,37.23858082,85.545,85.456,6.0]
[1645998794872,42.89629955,85.544,85.456,6.0]
[1645998795073,112.6,85.529,85.456,6.0]
[1645998795273,10.678,85.528,85.421,55.0709]
[1645998795473,27.01371873,85.528,85.422,3.09570891]
[1645998795673,26.56058082,85.527,85.423,6.0]
[1645998795974,24.26792952,85.526,85.424,29.83572322]
[1645998796178,27.01471873,85.526,85.425,8.49202296]
[1645998796377,29.30737003,85.525,85.425,8.49202296]
[1645998796576,128.279,85.524,85.425,8.49202296]
[1645998796776,34.4816,85.52,85.425,2.49202296]
[1645998796976,10.679,85.519,85.425,2.49202296]
[1645998797177,24.26792952,85.519,85.392,2.50449905]
[1645998797378,59.89769366,85.518,85.392,48.7148]
[1645998797577,10.68,85.517,85.393,2.67888996]
[1645998797877,77.20166369,85.517,85.395,3.00473114]
[1645998798080,13.58892952,85.516,85.395,3.00473114]
[1645998798276,10.68,85.515,85.396,6.0]
[1645998798482,17.5639,85.51,85.396,6.0]
[1645998798685,30.7817,85.509,85.396,6.0]
[1645998799083,2.74678921,85.508,85.396,6.0]
[1645998799283,6.0,85.507,85.397,117.6]
[1645998799482,6.0,85.507,85.398,6.0]
[1645998799689,2.74678921,85.506,85.398,6.0]
[1645998799883,6.0,85.505,85.396,6.0]
[1645998800284,2.74678921,85.504,85.396,6.0]
[1645998800486,6.0,85.503,85.396,6.0]
[1645998800885,2.74678921,85.502,85.396,6.0]
[1645998801394,6.0,85.501,85.396,6.0]
[1645998801586,6.0,85.501,85.398,2.36445921]
[1645998801790,2.74678921,85.5,85.4,16.92]
[1645998801989,2.74678921,85.5,85.401,8.64138624]
[1645998802387,23.9775,85.507,85.401,8.64138624]
[1645998802587,23.9775,85.507,85.402,120.34678921]
[1645998802787,23.9775,85.507,85.405,2.27793775]
[1645998802987,23.9775,85.507,85.407,117.6]
[1645998803287,23.9775,85.507,85.41,2.72277524]
[1645998803486,23.9775,85.507,85.413,2.90509775]
[1645998803487,6.0,85.506,85.413,2.90509775]
[1645998803688,6.0,85.506,85.415,117.6]
[1645998803912,6.0,85.506,85.418,2.81584178]
[1645998804109,6.0,85.506,85.422,117.6]
[1645998804309,6.0,85.506,85.423,8.44298661]
[1645998804710,2.74678921,85.526,85.426,2.6631472]
[1645998804913,6.0,85.525,85.429,2.91588741]
[1645998805112,4.679,85.538,85.432,2.60189106]
[1645998805311,6.0,85.537,85.435,2.57457132]
[1645998805511,6.0,85.537,85.437,117.6]
[1645998805713,6.0,85.537,85.439,117.6]
[1645998805917,6.0,85.538,85.441,117.6]
[1645998806214,47.552,85.539,85.444,2.64266909]
[1645998806416,17.5527,85.56,85.448,117.6]
[1645998806417,16.92,85.56,85.448,117.6]
[1645998806613,23.20156414,85.571,85.451,2.27533205]
[1645998806614,4.678,85.565,85.451,2.27533205]
[1645998806817,46.5807,85.564,85.454,2.42508168]
[1645998807118,16.92,85.56,85.457,2.61456154]
[1645998807313,4.678,85.558,85.459,117.6]
[1645998807514,4.678,85.558,85.461,117.6]
[1645998807713,6.0,85.553,85.463,117.6]
[1645998807914,6.0,85.553,85.465,2.43152052]
[1645998808114,24.13391415,85.552,85.466,6.0]
[1645998808314,6.0,85.551,85.466,6.0]
[1645998808715,141.04058082,85.55,85.466,6.0]
[1645998808921,6.0,85.549,85.466,6.0]
[1645998809115,122.276,85.548,85.465,2.43152052]
[1645998809315,122.276,85.548,85.453,2.41311278]
[1645998809316,117.6,85.546,85.453,2.41311278]
[1645998809514,117.6,85.544,85.454,6.0]
[1645998809716,10.678,85.543,85.454,6.0]
[1645998809915,34.11858082,85.543,85.454,6.0]
[1645998810114,29.44058082,85.543,85.454,6.0]
[1645998810314,117.6,85.541,85.454,6.0]
[1645998810615,6.0,85.54,85.454,6.0]
[1645998810816,32.18737003,85.54,85.454,6.0]
[1645998811014,26.18737003,85.539,85.454,6.0]
[1645998811215,6.0,85.538,85.454,6.0]
[1645998811420,32.18737003,85.538,85.454,6.0]
[1645998811818,143.78737003,85.537,85.453,2.41311278]
[1645998812018,117.6,85.535,85.453,2.41311278]
[1645998812220,134.52,85.53,85.453,2.41311278]
[1645998812418,6.0,85.529,85.453,2.41311278]
[1645998812819,8.74678921,85.529,85.453,2.41311278]
[1645998813019,2.74678921,85.528,85.453,2.41311278]
[1645998813220,6.0,85.527,85.453,2.41311278]
[1645998813621,2.74678921,85.526,85.453,2.41311278]
[1645998813819,6.0,85.525,85.453,2.41311278]
[1645998815024,6.0,85.525,85.454,6.0]
[1645998815721,23.20156414,85.558,85.454,6.0]
[1645998815722,6.0,85.529,85.456,2.7465722]
[1645998815922,6.0,85.548,85.458,117.6]
[1645998816122,6.0,85.548,85.461,2.34652768]
[1645998816323,6.0,85.548,85.463,3.02579831]
[1645998816525,6.0,85.548,85.464,6.0]
[1645998817223,6.0,85.548,85.465,2.74678921]
[1645998817422,23.44058082,85.562,85.466,10.678]
[1645998817622,23.44058082,85.562,85.468,2.54600611]
[1645998817822,23.44058082,85.562,85.471,2.5609256]
[1645998818022,23.44058082,85.562,85.473,32.53088196]
[1645998818222,23.44058082,85.562,85.474,8.62868469]
[1645998818626,6.0,85.561,85.474,8.62868469]
[1645998818927,6.0,85.561,85.476,3.06214482]
[1645998819227,23.44058082,85.56,85.477,6.0]
[1645998819524,6.0,85.559,85.479,2.79605018]
[1645998819924,6.0,85.559,85.48,6.0]
[1645998820525,23.44058082,85.558,85.479,2.79605018]
[1645998820725,10.676,85.557,85.479,2.79605018]
[1645998820926,33.87756414,85.557,85.479,2.79605018]
[1645998821224,23.44058082,85.556,85.479,2.79605018]
[1645998821429,6.0,85.555,85.479,2.79605018]
[1645998821828,23.44058082,85.554,85.479,2.79605018]
[1645998822026,6.0,85.553,85.479,2.79605018]
[1645998822226,16.92,85.55,85.479,2.79605018]
[1645998822427,6.0,85.549,85.479,2.79605018]
[1645998822827,29.44058082,85.549,85.479,2.79605018]